[Event "*** Titled Tuesday Blitz"]
[Site "Chess.com"]
[Date "2021.03.02"]
[Round "9"]
[White "shaheus"]
[Black "ApoIogiA"]
[Result "1-0"]
[WhiteElo "2408"]
[BlackElo "2189"]
[TimeControl "180+1"]
[EndTime "11:47:22 PST"]
[Termination "shaheus won by resignation"]

1. e4 {[%clk 0:03:00.9]} 1... c5 {[%clk 0:02:59.3]} 2. Nf3 {[%clk 0:03:00.6]}
2... d6 {[%clk 0:02:59.5]} 3. c3 {[%clk 0:03:00.4]} 3... Nf6 {[%clk 0:03:00.4]}
4. Qb3 {[%clk 0:03:00.3]} 4... Nc6 {[%clk 0:02:54.1]} 5. d4 {[%clk 0:02:59.2]}
5... cxd4 {[%clk 0:02:53.3]} 6. cxd4 {[%clk 0:02:59.1]} 6... Qb6 {[%clk
0:02:45.9]} 7. Nc3 {[%clk 0:02:47.6]} 7... Nxd4 {[%clk 0:02:35.8]} 8. Nxd4
{[%clk 0:02:24.1]} 8... Qxd4 {[%clk 0:02:34.7]} 9. Be3 {[%clk 0:02:23.8]} 9...
Qe5 {[%clk 0:02:19.8]} 10. Nb5 {[%clk 0:01:52.6]} 10... Be6 {[%clk 0:01:47.2]}
11. Nc7+ {[%clk 0:01:42.3]} 11... Kd8 {[%clk 0:01:46.2]} 12. Qxb7 {[%clk
0:01:12.6]} 12... Rc8 {[%clk 0:01:14.5]} 13. Nxe6+ {[%clk 0:01:11.4]} 13... Qxe6
{[%clk 0:00:52.9]} 14. Ba6 {[%clk 0:01:06.5]} 14... Nxe4 {[%clk 0:00:18.9]} 15.
Qxc8+ {[%clk 0:00:57.3]} 15... Qxc8 {[%clk 0:00:18.4]} 16. Bxc8 {[%clk
0:00:57.2]} 16... Kxc8 {[%clk 0:00:19.3]} 17. Bxa7 {[%clk 0:00:54.9]} 17... e5
{[%clk 0:00:17.9]} 18. Ke2 {[%clk 0:00:47.6]} 18... d5 {[%clk 0:00:18.1]} 19.
Rhc1+ {[%clk 0:00:44.8]} 19... Kb7 {[%clk 0:00:18]} 20. Be3 {[%clk 0:00:42.7]}
20... d4 {[%clk 0:00:16.8]} 21. Bd2 {[%clk 0:00:40]} 21... f6 {[%clk 0:00:17]}
22. f3 {[%clk 0:00:38]} 22... Ng5 {[%clk 0:00:11.7]} 23. Bxg5 {[%clk 0:00:28.6]}
23... fxg5 {[%clk 0:00:11.7]} 24. Kd3 {[%clk 0:00:28.5]} 24... Bd6 {[%clk
0:00:11]} 25. Rc4 {[%clk 0:00:24.3]} 25... Rf8 {[%clk 0:00:10.4]} 26. h3 {[%clk
0:00:24.1]} 26... h5 {[%clk 0:00:09.9]} 27. Rac1 {[%clk 0:00:19.8]} 27... g4
{[%clk 0:00:09.8]} 28. hxg4 {[%clk 0:00:19.6]} 28... hxg4 {[%clk 0:00:09.7]} 29.
Rf1 {[%clk 0:00:18.6]} 29... g5 {[%clk 0:00:04.8]} 30. Ke4 {[%clk 0:00:18.3]}
30... Rf4+ {[%clk 0:00:04.2]} 31. Kd5 {[%clk 0:00:18.4]} 31... Bb8 {[%clk
0:00:04.5]} 32. Rb4+ {[%clk 0:00:17.6]} 32... Ka8 {[%clk 0:00:03.5]} 33. Rc1
{[%clk 0:00:14.9]} 33... d3 {[%clk 0:00:02.2]} 34. Rxf4 {[%clk 0:00:10.5]} 34...
gxf4 {[%clk 0:00:03.1]} 35. Rd1 {[%clk 0:00:10.4]} 35... gxf3 {[%clk 0:00:03.6]}
36. gxf3 {[%clk 0:00:10.5]} 36... d2 {[%clk 0:00:04.5]} 37. Rxd2 {[%clk
0:00:10.5]} 37... e4 {[%clk 0:00:05.4]} 1-0

[Event "*** Titled Tuesday Blitz"]
[Site "Chess.com"]
[Date "2021.03.02"]
[Round "9"]
[White "CzechmVIII"]
[Black "Jan1401"]
[Result "1-0"]
[WhiteElo "2259"]
[BlackElo "2354"]
[TimeControl "180+1"]
[EndTime "11:47:23 PST"]
[Termination "CzechmVIII won by resignation"]

1. e4 {[%clk 0:03:00.9]} 1... e6 {[%clk 0:02:59.9]} 2. d4 {[%clk 0:03:00.4]}
2... d5 {[%clk 0:03:00.3]} 3. Nc3 {[%clk 0:03:00.8]} 3... Bb4 {[%clk 0:03:00.2]}
4. Ne2 {[%clk 0:03:00.8]} 4... Nc6 {[%clk 0:02:59.7]} 5. a3 {[%clk 0:03:00.8]}
5... Ba5 {[%clk 0:02:59.7]} 6. Be3 {[%clk 0:03:01.5]} 6... Nge7 {[%clk
0:02:48.3]} 7. Qd3 {[%clk 0:03:01.5]} 7... O-O {[%clk 0:02:39.8]} 8. O-O-O
{[%clk 0:03:01.5]} 8... dxe4 {[%clk 0:02:33.3]} 9. Nxe4 {[%clk 0:02:52.7]} 9...
Nf5 {[%clk 0:02:24.7]} 10. g4 {[%clk 0:02:32.4]} 10... Nxe3 {[%clk 0:02:21.6]}
11. fxe3 {[%clk 0:02:32.1]} 11... e5 {[%clk 0:01:58.3]} 12. Rg1 {[%clk
0:02:14.7]} 12... exd4 {[%clk 0:01:55.9]} 13. exd4 {[%clk 0:02:10.8]} 13... Bb6
{[%clk 0:01:55.6]} 14. g5 {[%clk 0:01:16.6]} 14... Kh8 {[%clk 0:01:33.5]} 15. h4
{[%clk 0:01:08.5]} 15... Bf5 {[%clk 0:01:28.5]} 16. N2g3 {[%clk 0:01:07.4]}
16... Bxe4 {[%clk 0:01:25.2]} 17. Qxe4 {[%clk 0:00:57.8]} 17... Qe8 {[%clk
0:00:56.6]} 18. c3 {[%clk 0:00:38.5]} 18... f5 {[%clk 0:00:48.6]} 19. gxf6
{[%clk 0:00:26.9]} 19... Rxf6 {[%clk 0:00:48.5]} 20. Bd3 {[%clk 0:00:21.9]}
20... Qxe4 {[%clk 0:00:47.8]} 21. Nxe4 {[%clk 0:00:22.2]} 21... Rf4 {[%clk
0:00:45.6]} 22. Ng5 {[%clk 0:00:18.8]} 22... h6 {[%clk 0:00:41.1]} 23. Ne6
{[%clk 0:00:18.5]} 23... Rf7 {[%clk 0:00:39.5]} 24. Bg6 {[%clk 0:00:13]} 24...
Re7 {[%clk 0:00:37.7]} 25. Nf4 {[%clk 0:00:12.6]} 25... Rf8 {[%clk 0:00:35.5]}
26. Rdf1 {[%clk 0:00:10.9]} 26... Nxd4 {[%clk 0:00:31]} 27. Bd3 {[%clk
0:00:07.1]} 27... Nb3+ {[%clk 0:00:26.8]} 28. Kc2 {[%clk 0:00:06.3]} 28... Bxg1
{[%clk 0:00:26.1]} 29. Ng6+ {[%clk 0:00:06.6]} 29... Kg8 {[%clk 0:00:26.2]} 30.
Rxf8+ {[%clk 0:00:06.4]} 30... Kh7 {[%clk 0:00:25.7]} 31. Nxe7+ {[%clk
0:00:06.6]} 31... g6 {[%clk 0:00:20.7]} 32. Rf7+ {[%clk 0:00:02.9]} 32... Kh8
{[%clk 0:00:20.7]} 33. Kxb3 {[%clk 0:00:03.2]} 33... Bc5 {[%clk 0:00:18.7]} 34.
Bxg6 {[%clk 0:00:02]} 34... Bxe7 {[%clk 0:00:17.9]} 35. Rxe7 {[%clk 0:00:02.3]}
35... c6 {[%clk 0:00:18.3]} 36. Rh7+ {[%clk 0:00:01.9]} 36... Kg8 {[%clk
0:00:17.7]} 37. Rxb7 {[%clk 0:00:02.8]} 37... a5 {[%clk 0:00:18]} 38. Rc7 {[%clk
0:00:03.3]} 38... a4+ {[%clk 0:00:18.5]} 39. Kxa4 {[%clk 0:00:03.6]} 39... Kf8
{[%clk 0:00:18.8]} 40. Kb4 {[%clk 0:00:04.5]} 40... Kg8 {[%clk 0:00:18.6]} 41.
Kc5 {[%clk 0:00:05.4]} 41... h5 {[%clk 0:00:19.2]} 42. Kxc6 {[%clk 0:00:06.3]}
42... Kf8 {[%clk 0:00:19.7]} 43. a4 {[%clk 0:00:06.7]} 43... Kg8 {[%clk
0:00:19.9]} 44. a5 {[%clk 0:00:07.2]} 44... Kf8 {[%clk 0:00:20.5]} 45. a6 {[%clk
0:00:07.7]} 1-0

[Event "*** Titled Tuesday Blitz"]
[Site "Chess.com"]
[Date "2021.03.02"]
[Round "9"]
[White "pfalcon1949"]
[Black "VladaSviridova"]
[Result "0-1"]
[WhiteElo "2029"]
[BlackElo "2226"]
[TimeControl "180+1"]
[EndTime "11:47:23 PST"]
[Termination "VladaSviridova won by checkmate"]

1. c4 {[%clk 0:03:00.9]} 1... c6 {[%clk 0:03:00]} 2. e4 {[%clk 0:02:59.2]} 2...
d5 {[%clk 0:02:59.8]} 3. cxd5 {[%clk 0:02:59]} 3... cxd5 {[%clk 0:03:00.3]} 4.
exd5 {[%clk 0:02:59.9]} 4... Nf6 {[%clk 0:03:00.6]} 5. Nc3 {[%clk 0:03:00.1]}
5... Nxd5 {[%clk 0:03:00.9]} 6. Bc4 {[%clk 0:02:59.6]} 6... Nb6 {[%clk
0:03:00.2]} 7. Bb3 {[%clk 0:02:58]} 7... Bf5 {[%clk 0:03:00.3]} 8. d4 {[%clk
0:02:54.7]} 8... e6 {[%clk 0:02:59.8]} 9. Nf3 {[%clk 0:02:54.8]} 9... Be7 {[%clk
0:02:56.3]} 10. O-O {[%clk 0:02:54.4]} 10... O-O {[%clk 0:02:56.3]} 11. Re1
{[%clk 0:02:54.2]} 11... Bf6 {[%clk 0:02:51.5]} 12. Bf4 {[%clk 0:02:53.5]} 12...
Nc6 {[%clk 0:02:50.8]} 13. Nb5 {[%clk 0:02:37.7]} 13... Qd7 {[%clk 0:02:06.9]}
14. Bd6 {[%clk 0:02:25.8]} 14... Rfc8 {[%clk 0:01:56.2]} 15. Bc5 {[%clk
0:02:25.3]} 15... Nd5 {[%clk 0:01:46.4]} 16. Nc3 {[%clk 0:02:18.5]} 16... Nxc3
{[%clk 0:01:43.4]} 17. bxc3 {[%clk 0:02:18.9]} 17... b6 {[%clk 0:01:43.7]} 18.
Ba3 {[%clk 0:02:16.9]} 18... Na5 {[%clk 0:01:42.1]} 19. Rc1 {[%clk 0:02:07.7]}
19... Nc4 {[%clk 0:01:35.1]} 20. Bxc4 {[%clk 0:01:49.8]} 20... Rxc4 {[%clk
0:01:34.4]} 21. Qe2 {[%clk 0:01:49.5]} 21... Rac8 {[%clk 0:01:30.3]} 22. Ne5
{[%clk 0:01:49.7]} 22... Bxe5 {[%clk 0:01:30.2]} 23. dxe5 {[%clk 0:01:50.6]}
23... Rxc3 {[%clk 0:01:25.5]} 24. Rxc3 {[%clk 0:01:44.1]} 24... Rxc3 {[%clk
0:01:25.1]} 25. Bd6 {[%clk 0:01:44.8]} 25... h6 {[%clk 0:01:11.2]} 26. h3 {[%clk
0:01:43.7]} 26... Qc6 {[%clk 0:01:10.6]} 27. Kh2 {[%clk 0:01:40.5]} 27... Rc2
{[%clk 0:01:09.2]} 28. Qe3 {[%clk 0:01:31.4]} 28... Rxa2 {[%clk 0:01:05.1]} 29.
Rc1 {[%clk 0:01:30.3]} 29... Rc2 {[%clk 0:01:01.3]} 30. Rd1 {[%clk 0:01:25]}
30... Be4 {[%clk 0:00:55.4]} 31. Be7 {[%clk 0:01:13.7]} 31... Bxg2 {[%clk
0:00:39.7]} 32. Rd2 {[%clk 0:01:12.4]} 32... Rxd2 {[%clk 0:00:28]} 33. Qxd2
{[%clk 0:01:12.3]} 33... Bd5 {[%clk 0:00:27.3]} 34. Qd3 {[%clk 0:01:05.2]} 34...
Qc1 {[%clk 0:00:24]} 35. f3 {[%clk 0:00:57.3]} 35... Qb2+ {[%clk 0:00:23.7]} 36.
Kg3 {[%clk 0:00:56.7]} 36... Qxe5+ {[%clk 0:00:23]} 37. Kf2 {[%clk 0:00:57.2]}
37... Qb2+ {[%clk 0:00:21.9]} 38. Kg3 {[%clk 0:00:57.2]} 38... Qc1 {[%clk
0:00:16.3]} 39. Qe2 {[%clk 0:00:53.7]} 39... Qg1+ {[%clk 0:00:16.2]} 40. Kf4
{[%clk 0:00:53.6]} 40... g5+ {[%clk 0:00:14.1]} 41. Ke5 {[%clk 0:00:50.9]} 41...
Qa1+ {[%clk 0:00:14.1]} 42. Kd6 {[%clk 0:00:50.4]} 42... Qa3+ {[%clk 0:00:14.1]}
43. Kd7 {[%clk 0:00:50.1]} 43... Bc6+ {[%clk 0:00:11.9]} 44. Kd8 {[%clk
0:00:42.9]} 44... Qb3 {[%clk 0:00:09.7]} 45. Bf6 {[%clk 0:00:35.6]} 45... Qd5+
{[%clk 0:00:08.6]} 46. Kc8 {[%clk 0:00:23.4]} 46... Qd7+ {[%clk 0:00:08.7]} 47.
Kb8 {[%clk 0:00:22.8]} 47... Qb7# {[%clk 0:00:09.2]} 0-1

[Event "*** Titled Tuesday Blitz"]
[Site "Chess.com"]
[Date "2021.03.02"]
[Round "9"]
[White "kleopl"]
[Black "MateusViageiro"]
[Result "1-0"]
[WhiteElo "2487"]
[BlackElo "2358"]
[TimeControl "180+1"]
[EndTime "11:47:24 PST"]
[Termination "kleopl won on time"]

1. c4 {[%clk 0:03:00.9]} 1... Nf6 {[%clk 0:02:57.2]} 2. Nc3 {[%clk 0:03:00.5]}
2... g6 {[%clk 0:02:53.1]} 3. e4 {[%clk 0:03:00.5]} 3... d6 {[%clk 0:02:53.3]}
4. d4 {[%clk 0:03:00.2]} 4... Bg7 {[%clk 0:02:53.1]} 5. Nge2 {[%clk 0:03:00.4]}
5... O-O {[%clk 0:02:53.2]} 6. Ng3 {[%clk 0:03:00.2]} 6... Nc6 {[%clk
0:02:47.9]} 7. d5 {[%clk 0:02:59.3]} 7... Ne5 {[%clk 0:02:41.8]} 8. f4 {[%clk
0:02:58.5]} 8... Ned7 {[%clk 0:02:39.5]} 9. Be2 {[%clk 0:02:56.7]} 9... c6
{[%clk 0:02:38.9]} 10. O-O {[%clk 0:02:55]} 10... cxd5 {[%clk 0:02:38.9]} 11.
cxd5 {[%clk 0:02:51.3]} 11... a6 {[%clk 0:02:22.7]} 12. Be3 {[%clk 0:02:49.2]}
12... b5 {[%clk 0:02:20.8]} 13. Rc1 {[%clk 0:02:46.1]} 13... Bb7 {[%clk
0:02:16.5]} 14. Kh1 {[%clk 0:02:44.4]} 14... Rc8 {[%clk 0:02:15.1]} 15. Bf3
{[%clk 0:02:39.3]} 15... Qa5 {[%clk 0:02:11.4]} 16. a3 {[%clk 0:02:33.9]} 16...
h5 {[%clk 0:02:04.5]} 17. Nge2 {[%clk 0:02:26]} 17... b4 {[%clk 0:01:55.9]} 18.
axb4 {[%clk 0:02:24.2]} 18... Qxb4 {[%clk 0:01:55.9]} 19. Qd2 {[%clk 0:02:22.8]}
19... Ng4 {[%clk 0:01:47.2]} 20. Bxg4 {[%clk 0:02:21.1]} 20... hxg4 {[%clk
0:01:46.2]} 21. Bd4 {[%clk 0:02:17.6]} 21... Nc5 {[%clk 0:01:43.1]} 22. Bxg7
{[%clk 0:02:03.4]} 22... Kxg7 {[%clk 0:01:37.7]} 23. Qd4+ {[%clk 0:01:58.1]}
23... Qxd4 {[%clk 0:01:35.4]} 24. Nxd4 {[%clk 0:01:59]} 24... Nd3 {[%clk
0:01:30.1]} 25. Rb1 {[%clk 0:01:58.2]} 25... Rc4 {[%clk 0:01:28.2]} 26. Nde2
{[%clk 0:01:55.7]} 26... e6 {[%clk 0:01:24.8]} 27. Kg1 {[%clk 0:01:38.6]} 27...
exd5 {[%clk 0:01:23.4]} 28. exd5 {[%clk 0:01:39.5]} 28... Re8 {[%clk 0:01:18]}
29. Rfd1 {[%clk 0:01:37.9]} 29... Nxf4 {[%clk 0:01:11.1]} 30. Nxf4 {[%clk
0:01:29.8]} 30... Rxf4 {[%clk 0:01:10.5]} 31. Rd2 {[%clk 0:01:26.4]} 31... Bc8
{[%clk 0:01:03.2]} 32. Ra1 {[%clk 0:01:24.9]} 32... Rb4 {[%clk 0:00:59.4]} 33.
Kf2 {[%clk 0:01:20.1]} 33... f5 {[%clk 0:00:55.1]} 34. Re1 {[%clk 0:01:08.5]}
34... Rxe1 {[%clk 0:00:53.6]} 35. Kxe1 {[%clk 0:01:09.4]} 35... Kf6 {[%clk
0:00:53.1]} 36. Kf2 {[%clk 0:01:08.6]} 36... a5 {[%clk 0:00:49]} 37. Re2 {[%clk
0:01:03.9]} 37... Bd7 {[%clk 0:00:48.3]} 38. Rd2 {[%clk 0:01:00.8]} 38... a4
{[%clk 0:00:47.6]} 39. g3 {[%clk 0:01:00.8]} 39... Rb3 {[%clk 0:00:46.9]} 40.
Ne2 {[%clk 0:00:57.8]} 40... Rf3+ {[%clk 0:00:34.6]} 41. Kg2 {[%clk 0:00:57.3]}
41... a3 {[%clk 0:00:30.8]} 42. bxa3 {[%clk 0:00:55.5]} 42... Rxa3 {[%clk
0:00:31.5]} 43. Nf4 {[%clk 0:00:49.3]} 43... g5 {[%clk 0:00:06.7]} 44. Ne2
{[%clk 0:00:47.4]} 44... Ra5 {[%clk 0:00:01.7]} 45. Nc3 {[%clk 0:00:45.3]} 1-0

[Event "*** Titled Tuesday Blitz"]
[Site "Chess.com"]
[Date "2021.03.02"]
[Round "9"]
[White "Andrakhanova"]
[Black "redblizzard"]
[Result "1-0"]
[WhiteElo "2296"]
[BlackElo "2436"]
[TimeControl "180+1"]
[EndTime "11:47:25 PST"]
[Termination "Andrakhanova won by resignation"]

1. c4 {[%clk 0:02:07.6]} 1... Nf6 {[%clk 0:02:59.2]} 2. Nc3 {[%clk 0:02:05.8]}
2... d5 {[%clk 0:02:59.2]} 3. cxd5 {[%clk 0:02:05.2]} 3... Nxd5 {[%clk
0:03:00.1]} 4. g3 {[%clk 0:02:05.6]} 4... g6 {[%clk 0:03:00.1]} 5. Bg2 {[%clk
0:02:05.4]} 5... Nb6 {[%clk 0:03:00.7]} 6. Nf3 {[%clk 0:02:05.6]} 6... Nc6
{[%clk 0:03:00.9]} 7. b3 {[%clk 0:02:04.8]} 7... Bg7 {[%clk 0:03:01.3]} 8. Bb2
{[%clk 0:02:05.1]} 8... O-O {[%clk 0:03:00.4]} 9. O-O {[%clk 0:02:05]} 9... e5
{[%clk 0:03:01]} 10. d3 {[%clk 0:02:04.7]} 10... Re8 {[%clk 0:02:59.2]} 11. Rc1
{[%clk 0:02:04.7]} 11... Nd4 {[%clk 0:02:56.7]} 12. Ne4 {[%clk 0:02:00.1]} 12...
c6 {[%clk 0:02:52.3]} 13. Qd2 {[%clk 0:01:50.7]} 13... Bg4 {[%clk 0:02:35.5]}
14. Nxd4 {[%clk 0:01:42.9]} 14... exd4 {[%clk 0:02:35.9]} 15. h3 {[%clk
0:01:43]} 15... Bc8 {[%clk 0:02:30.8]} 16. Kh2 {[%clk 0:01:32]} 16... h6 {[%clk
0:02:30.5]} 17. b4 {[%clk 0:01:23.4]} 17... a6 {[%clk 0:02:13.8]} 18. a3 {[%clk
0:01:23.4]} 18... Nd5 {[%clk 0:02:04.6]} 19. Rc4 {[%clk 0:01:16.3]} 19... f5
{[%clk 0:01:43.7]} 20. Nc5 {[%clk 0:01:14.8]} 20... f4 {[%clk 0:01:43.9]} 21.
Bxd4 {[%clk 0:00:58.8]} 21... fxg3+ {[%clk 0:01:07.1]} 22. fxg3 {[%clk
0:00:59.7]} 22... Bxd4 {[%clk 0:01:05.2]} 23. Rxd4 {[%clk 0:01:00.6]} 23... Qe7
{[%clk 0:01:03.4]} 24. e4 {[%clk 0:00:59.9]} 24... Qg7 {[%clk 0:00:47]} 25. exd5
{[%clk 0:00:54.2]} 25... Qxd4 {[%clk 0:00:47.2]} 26. Qxh6 {[%clk 0:00:54.3]}
26... Qg7 {[%clk 0:00:47.6]} 27. Qxg7+ {[%clk 0:00:48.1]} 27... Kxg7 {[%clk
0:00:48.5]} 28. dxc6 {[%clk 0:00:49]} 28... b6 {[%clk 0:00:47.4]} 29. Ne4 {[%clk
0:00:44.4]} 29... Bf5 {[%clk 0:00:45.5]} 30. g4 {[%clk 0:00:35.3]} 30... Bxe4
{[%clk 0:00:45.2]} 31. Bxe4 {[%clk 0:00:36.2]} 31... Rf8 {[%clk 0:00:41.5]} 32.
Rc1 {[%clk 0:00:27.5]} 32... Rac8 {[%clk 0:00:39.7]} 33. Kg3 {[%clk 0:00:26]}
33... Rc7 {[%clk 0:00:38.6]} 34. Rc4 {[%clk 0:00:22.5]} 34... Rf6 {[%clk
0:00:34.9]} 35. h4 {[%clk 0:00:20.4]} 35... Rd6 {[%clk 0:00:32.8]} 36. a4 {[%clk
0:00:20]} 36... Kf6 {[%clk 0:00:30.9]} 37. b5 {[%clk 0:00:20.3]} 37... axb5
{[%clk 0:00:29]} 38. axb5 {[%clk 0:00:21.2]} 38... Ke5 {[%clk 0:00:29]} 39. Ra4
{[%clk 0:00:21.1]} 39... Rd4 {[%clk 0:00:25.7]} 40. Ra6 {[%clk 0:00:21]} 40...
Kd6 {[%clk 0:00:19.9]} 41. Rxb6 {[%clk 0:00:20.8]} 41... Kc5 {[%clk 0:00:19.9]}
42. Rb7 {[%clk 0:00:20.1]} 42... Kd6 {[%clk 0:00:18.6]} 43. Rb8 {[%clk
0:00:19.6]} 43... Re7 {[%clk 0:00:18.1]} 44. Rd8+ {[%clk 0:00:17.7]} 44... Kc5
{[%clk 0:00:17.8]} 45. Rxd4 {[%clk 0:00:18]} 45... Kxd4 {[%clk 0:00:18.7]} 46.
b6 {[%clk 0:00:18.6]} 46... Kc5 {[%clk 0:00:18.9]} 47. c7 {[%clk 0:00:18.8]}
47... Re8 {[%clk 0:00:19.5]} 48. b7 {[%clk 0:00:19.3]} 1-0

[Event "*** Titled Tuesday Blitz"]
[Site "Chess.com"]
[Date "2021.03.02"]
[Round "9"]
[White "tomsishere"]
[Black "Chowman64"]
[Result "0-1"]
[WhiteElo "2505"]
[BlackElo "2678"]
[TimeControl "180+1"]
[EndTime "11:47:26 PST"]
[Termination "Chowman64 won on time"]

1. Nf3 {[%clk 0:03:00.9]} 1... Nf6 {[%clk 0:02:58.6]} 2. g3 {[%clk 0:03:00.4]}
2... b5 {[%clk 0:02:57.1]} 3. Bg2 {[%clk 0:02:58.4]} 3... Bb7 {[%clk 0:02:57.1]}
4. O-O {[%clk 0:02:58.8]} 4... e6 {[%clk 0:02:57.5]} 5. d4 {[%clk 0:02:58.9]}
5... Be7 {[%clk 0:02:54.4]} 6. b3 {[%clk 0:02:58.2]} 6... O-O {[%clk 0:02:48.7]}
7. Bb2 {[%clk 0:02:58.7]} 7... d6 {[%clk 0:02:44.9]} 8. Nbd2 {[%clk 0:02:57.4]}
8... Nbd7 {[%clk 0:02:40.9]} 9. c4 {[%clk 0:02:56.7]} 9... a6 {[%clk 0:02:33.8]}
10. Qc2 {[%clk 0:02:55.5]} 10... c5 {[%clk 0:02:31]} 11. Rfd1 {[%clk 0:02:32.3]}
11... Qc7 {[%clk 0:02:29]} 12. Rac1 {[%clk 0:02:18]} 12... Rac8 {[%clk
0:02:27.5]} 13. Qd3 {[%clk 0:01:53.2]} 13... b4 {[%clk 0:02:17.4]} 14. d5 {[%clk
0:01:28.5]} 14... exd5 {[%clk 0:02:12]} 15. cxd5 {[%clk 0:01:26.9]} 15... Bxd5
{[%clk 0:02:11.9]} 16. e4 {[%clk 0:01:24.1]} 16... Bc6 {[%clk 0:02:00.2]} 17.
Nh4 {[%clk 0:01:21.8]} 17... Ne5 {[%clk 0:01:52.1]} 18. Qe2 {[%clk 0:01:14.4]}
18... Bb5 {[%clk 0:01:49.5]} 19. Qe3 {[%clk 0:01:07.7]} 19... Nd3 {[%clk
0:01:45.3]} 20. Rc2 {[%clk 0:01:05.1]} 20... Nxb2 {[%clk 0:01:26.6]} 21. Rxb2
{[%clk 0:01:06]} 21... Rfe8 {[%clk 0:01:24.9]} 22. Nf5 {[%clk 0:00:55.9]} 22...
Bf8 {[%clk 0:01:19.7]} 23. Qg5 {[%clk 0:00:55.3]} 23... Kh8 {[%clk 0:01:19.6]}
24. Nc4 {[%clk 0:00:45.9]} 24... Bxc4 {[%clk 0:01:18.9]} 25. bxc4 {[%clk
0:00:46.8]} 25... Nxe4 {[%clk 0:01:12.2]} 26. Bxe4 {[%clk 0:00:45.6]} 26... Rxe4
{[%clk 0:01:12.3]} 27. Rbd2 {[%clk 0:00:45.6]} 27... Re6 {[%clk 0:01:06.8]} 28.
h4 {[%clk 0:00:04.3]} 28... g6 {[%clk 0:00:48.5]} 29. Ne3 {[%clk 0:00:02.6]}
29... Bg7 {[%clk 0:00:47.5]} 30. Nd5 {[%clk 0:00:02.8]} 30... Qd8 {[%clk
0:00:47.5]} 31. Nf4 {[%clk 0:00:03.3]} 31... Qxg5 {[%clk 0:00:14.1]} 32. hxg5
{[%clk 0:00:04.2]} 32... Bd4 {[%clk 0:00:12.6]} 33. Nxe6 {[%clk 0:00:02.4]}
33... fxe6 {[%clk 0:00:12.9]} 34. Kg2 {[%clk 0:00:02.2]} 34... Kg7 {[%clk
0:00:12.1]} 35. f4 {[%clk 0:00:02.3]} 35... a5 {[%clk 0:00:10.7]} 36. Kf3 {[%clk
0:00:02.2]} 36... a4 {[%clk 0:00:10.4]} 0-1

[Event "*** Titled Tuesday Blitz"]
[Site "Chess.com"]
[Date "2021.03.02"]
[Round "9"]
[White "lacafi"]
[Black "BvsN"]
[Result "0-1"]
[WhiteElo "2161"]
[BlackElo "2286"]
[TimeControl "180+1"]
[EndTime "11:47:26 PST"]
[Termination "BvsN won by checkmate"]

1. d4 {[%clk 0:03:00.9]} 1... d5 {[%clk 0:03:00.1]} 2. Nf3 {[%clk 0:03:01.2]}
2... Nf6 {[%clk 0:02:59.7]} 3. e3 {[%clk 0:03:01.5]} 3... Bf5 {[%clk 0:02:58.6]}
4. Nbd2 {[%clk 0:03:00]} 4... e6 {[%clk 0:02:56.3]} 5. b3 {[%clk 0:02:56.3]}
5... Bb4 {[%clk 0:02:51.8]} 6. Bb2 {[%clk 0:02:55.4]} 6... Ne4 {[%clk
0:02:46.4]} 7. Be2 {[%clk 0:02:55]} 7... Nc3 {[%clk 0:02:29.1]} 8. Bxc3 {[%clk
0:02:42.8]} 8... Bxc3 {[%clk 0:02:30]} 9. Rb1 {[%clk 0:02:42.9]} 9... O-O {[%clk
0:02:24.3]} 10. O-O {[%clk 0:02:42.6]} 10... Nd7 {[%clk 0:02:22.1]} 11. b4
{[%clk 0:02:34]} 11... h6 {[%clk 0:02:19.8]} 12. Rb3 {[%clk 0:02:29.2]} 12...
Bxd2 {[%clk 0:02:19.4]} 13. Nxd2 {[%clk 0:02:29.1]} 13... Nf6 {[%clk 0:02:15.5]}
14. c4 {[%clk 0:02:27.4]} 14... c6 {[%clk 0:02:12.7]} 15. b5 {[%clk 0:02:22.3]}
15... dxc4 {[%clk 0:02:09.3]} 16. Bxc4 {[%clk 0:02:19.3]} 16... cxb5 {[%clk
0:02:08.3]} 17. Rxb5 {[%clk 0:02:12.7]} 17... b6 {[%clk 0:02:02.3]} 18. Qb3
{[%clk 0:01:40.8]} 18... Rc8 {[%clk 0:01:55.5]} 19. h3 {[%clk 0:00:49.7]} 19...
Bg6 {[%clk 0:01:43.2]} 20. f4 {[%clk 0:00:32.6]} 20... Qd6 {[%clk 0:01:40]} 21.
g4 {[%clk 0:00:26.8]} 21... Ne4 {[%clk 0:01:33]} 22. Nf3 {[%clk 0:00:22.2]}
22... Bh7 {[%clk 0:01:16.6]} 23. Rd1 {[%clk 0:00:21.1]} 23... Rc7 {[%clk
0:01:14.5]} 24. Bd3 {[%clk 0:00:19.1]} 24... Nc3 {[%clk 0:01:06.6]} 25. Bxh7+
{[%clk 0:00:16]} 25... Kxh7 {[%clk 0:01:06.9]} 26. Ne5 {[%clk 0:00:10.8]} 26...
Nxd1 {[%clk 0:01:01]} 27. Qxd1 {[%clk 0:00:10.8]} 27... Rfc8 {[%clk 0:00:57.8]}
28. Qd3+ {[%clk 0:00:10.5]} 28... g6 {[%clk 0:00:56.9]} 29. Kg2 {[%clk
0:00:10.2]} 29... Kg7 {[%clk 0:00:44.7]} 30. f5 {[%clk 0:00:10.2]} 30... exf5
{[%clk 0:00:41.5]} 31. gxf5 {[%clk 0:00:09.8]} 31... g5 {[%clk 0:00:31.7]} 32.
Ng4 {[%clk 0:00:07]} 32... f6 {[%clk 0:00:25.6]} 33. e4 {[%clk 0:00:04]} 33...
Rc2+ {[%clk 0:00:23.8]} 34. Nf2 {[%clk 0:00:02.8]} 34... a6 {[%clk 0:00:19.4]}
35. Rd5 {[%clk 0:00:02.9]} 35... Rxf2+ {[%clk 0:00:16.7]} 36. Kxf2 {[%clk
0:00:02.8]} 36... Qh2+ {[%clk 0:00:17.3]} 37. Kf3 {[%clk 0:00:01.6]} 37... Qxh3+
{[%clk 0:00:17.3]} 38. Ke2 {[%clk 0:00:02]} 38... Qg2+ {[%clk 0:00:16.8]} 39.
Ke3 {[%clk 0:00:02.4]} 39... Rc2 {[%clk 0:00:15.8]} 40. Rd7+ {[%clk 0:00:01.7]}
40... Kf8 {[%clk 0:00:15.6]} 41. Qa3+ {[%clk 0:00:01.5]} 41... Kg8 {[%clk
0:00:14.8]} 42. Qe7 {[%clk 0:00:01.3]} 42... Qf2+ {[%clk 0:00:14.4]} 43. Kd3
{[%clk 0:00:01.5]} 43... Qd2# {[%clk 0:00:11.9]} 0-1